fUSD/lending_fUSD_20260207
["ID","MTS","AMOUNT","RATE_DAILY","PERIOD"]
[404744472,1770501042413,-12054.24,0.00030309,2]
[404744473,1770501042423,-1913.68462948,0.0003031,2]
[404744474,1770501042432,-203.62155845,0.00030829,2]
[404744475,1770501042442,-554.47502784,0.00031757,2]
[404744476,1770501042451,-507.0,0.00032616,2]
[404744477,1770501042463,-554.47502784,0.00033284,2]
[404744478,1770501042472,-155.78,0.000334,14]
[404744479,1770501042481,-753.01,0.000334,2]
[404744480,1770501042490,-1913.68462948,0.00033732,2]
[404744481,1770501042499,-204.3298222,0.00033801,2]
[404744482,1770501042508,-3687.57,0.00034267,2]
[404744483,1770501042518,-19390.65,0.0003427,2]
[404744484,1770501042527,-507.0,0.00034309,4]
[404744485,1770501042536,-554.47502784,0.00034812,2]
[404744486,1770501042546,-13082.53,0.000349,2]
[404744487,1770501042555,-150.0,0.00034904,2]
[404744488,1770501042565,-203.62155845,0.00035237,2]
[404744489,1770501042574,-318.07062284,0.00035616,7]
[404744490,1770501042583,-416.34,0.000357,14]
[404744491,1770501042592,-507.0,0.00036001,6]
[404744492,1770501042601,-554.47502784,0.0003634,2]
[404744493,1770501042611,-150.0,0.00036649,2]
[404744494,1770501042620,-1913.68462948,0.00037155,2]
[404744495,1770501042630,-1756.02,0.00037421,48]
[404744496,1770501042639,-500.0,0.00037562,2]
[404744497,1770501042648,-507.0,0.00037693,8]
[404744498,1770501042657,-554.47502784,0.00037868,2]
[404744499,1770501042666,-753.01,0.00038,2]
[404744500,1770501042675,-150.0,0.00038482,2]
[404744501,1770501042684,-421.0,0.00038608,2]
[404744502,1770501042698,-421.0,0.0003867,7]
[404744503,1770501042707,-421.0,0.00038733,7]
[404744504,1770501042716,-13082.53,0.000388,2]
[404744505,1770501042725,-204.3298222,0.00038927,2]
[404744506,1770501042735,-421.0,0.00038935,7]
[404744507,1770501042744,-421.0,0.00039172,120]
[404744508,1770501042753,-421.0,0.00039221,2]
[404744509,1770501042762,-507.0,0.00039386,10]
[404744510,1770501042771,-554.47502784,0.00039396,2]
[404744511,1770501042781,-2000.0,0.000396,7]
[404744512,1770501042790,-203.62155845,0.00039645,2]
[404744513,1770501042800,-421.0,0.00039682,7]
[404744514,1770501042809,-300.0,0.00039736,2]
[404744515,1770501042819,-571.85515654,0.00039736,2]
[404744516,1770501042828,-300.0,0.00039736,2]
[404744517,1770501042837,-300.0,0.00039736,2]
[404744518,1770501042847,-300.0,0.00039736,2]
[404744519,1770501042856,-1078.26092173,0.00039736,2]
[404744520,1770501042865,-300.0,0.00039736,2]
[404744521,1770501042874,-300.0,0.00039736,2]
[404744522,1770501042884,-852.68208559,0.00039736,2]
[404744523,1770501042893,-305.02115314,0.00039736,2]
[404744524,1770501042903,-300.0,0.00039736,2]
[404744525,1770501042912,-881.38175827,0.00039736,2]
[404744526,1770501042922,-300.0,0.00039736,2]
[404744527,1770501042931,-300.0,0.00039736,2]
[404744528,1770501042940,-300.0,0.00039736,2]
[404744529,1770501042949,-300.0,0.00039736,2]
[404744530,1770501042958,-306.19819169,0.00039736,2]
[404744531,1770501042968,-300.0,0.00039736,2]
[404744532,1770501042978,-300.0,0.00039736,2]
[404744533,1770501042988,-457.17696299,0.00039736,2]
[404744534,1770501042999,-300.0,0.00039736,2]
[404744535,1770501043008,-300.0,0.00039736,2]
[404744536,1770501043018,-300.0,0.00039736,2]
[404744537,1770501043028,-370.09797997,0.00039736,2]
[404744538,1770501043038,-300.0,0.00039736,2]
[404744539,1770501043047,-300.0,0.00039736,2]
[404744540,1770501043057,-300.0,0.00039736,2]
[404744541,1770501043067,-300.0,0.00039736,2]
[404744542,1770501043077,-300.0,0.00039736,2]
[404744543,1770501043086,-516.79047855,0.00039736,2]
[404744544,1770501043095,-305.17533586,0.00039736,2]
[404744545,1770501043106,-300.0,0.00039736,2]
[404744546,1770501043115,-300.0,0.00039736,2]
[404744547,1770501043125,-300.0,0.00039736,2]
[404744549,1770501043134,-300.0,0.00039736,2]
[404744551,1770501043144,-300.0,0.00039736,2]
[404744553,1770501043153,-300.0,0.00039736,2]
[404744555,1770501043163,-571.85515654,0.00039736,2]
[404744557,1770501043172,-300.0,0.00039736,2]
[404744559,1770501043182,-300.0,0.00039736,2]
[404744560,1770501043194,-300.0,0.00039736,2]
[404744561,1770501043203,-1078.26092173,0.00039736,2]
[404744562,1770501043214,-303.0,0.00039736,2]
[404744563,1770501043224,-300.0,0.00039736,2]
[404744564,1770501043234,-852.68208559,0.00039736,2]
[404744565,1770501043243,-305.02115314,0.00039736,2]
[404744566,1770501043253,-300.0,0.00039736,2]
[404744567,1770501043262,-881.38175827,0.00039736,2]
[404744568,1770501043271,-300.0,0.00039736,2]
[404744569,1770501043281,-300.0,0.00039736,2]
[404744570,1770501043290,-300.0,0.00039736,2]
[404744571,1770501043300,-300.0,0.00039736,2]
[404744572,1770501043310,-306.19819169,0.00039736,2]
[404744573,1770501043319,-300.0,0.00039736,2]
[404744574,1770501043329,-300.0,0.00039736,2]
[404744575,1770501043338,-457.17696299,0.00039736,2]
[404744576,1770501043347,-300.0,0.00039736,2]
[404744577,1770501043357,-300.0,0.00039736,2]
[404744578,1770501043367,-300.0,0.00039736,2]
[404744579,1770501043376,-370.09797997,0.00039736,2]
[404744580,1770501043391,-300.0,0.00039736,2]
[404744581,1770501043401,-300.0,0.00039736,2]
[404744582,1770501043411,-300.0,0.00039736,2]
[404744583,1770501043420,-300.0,0.00039736,2]
[404744584,1770501043432,-300.0,0.00039736,2]
[404744585,1770501043442,-516.79047855,0.00039736,2]
[404744586,1770501043451,-305.17533586,0.00039736,2]
[404744587,1770501043462,-300.0,0.00039736,2]
[404744588,1770501043471,-2836.87849011,0.0004,7]
[404744589,1770501043481,-153.0,0.0004,120]
[404744590,1770501043491,-421.0,0.00040111,2]
[404744591,1770501043500,-421.0,0.00040142,2]
[404744592,1770501043510,-416.34,0.000402,14]
[404744593,1770501043520,-7082.98,0.00040325,2]
[404744594,1770501043529,-150.0,0.00040406,2]
[404744595,1770501043734,-616.0,0.00040518,2]
[404744596,1770501043746,-1335.0,0.00040518,2]
[404744597,1770501043758,-1541.911,0.00040518,2]
[404744598,1770501043768,-3483.0,0.00040518,2]
[404744599,1770501043777,-1272.0,0.00040518,2]
[404744600,1770501043787,-1206.0,0.00040518,2]
[404744601,1770501043797,-917.0,0.00040518,2]
[404744602,1770501043807,-250.0,0.00040518,2]
[404744603,1770501043817,-150.0,0.00040518,2]
[404744604,1770501043826,-150.0,0.00040518,2]
[404744605,1770501043836,-3255.0,0.00040518,2]
[404744606,1770501043847,-150.0,0.00040518,2]
[404744607,1770501043858,-150.0,0.00040518,2]
[404744608,1770501043869,-6584.0,0.00040518,2]
[404744609,1770501043879,-2447.0,0.00040518,2]
[404744610,1770501043891,-150.0,0.00040518,2]
[404744611,1770501043902,-421.0,0.00040568,2]
[404744612,1770501043914,-1913.68462948,0.00040577,15]
[404744613,1770501043927,-421.0,0.00040588,2]
[404744614,1770501043938,-753.01,0.000406,30]
[404744615,1770501043950,-421.0,0.0004062,120]
[404744616,1770501043960,-423.0,0.00040648,2]
[404744617,1770501043970,-423.0,0.0004077,7]
[404744618,1770501043980,-421.0,0.00040797,120]
[404744619,1770501043990,-153.0,0.000408,120]
[404744620,1770501044000,-554.47502784,0.00040923,2]
[404744621,1770501044009,-13082.53,0.00041,2]
[404744622,1770501044019,-4833.12,0.00041017,2]
[404744623,1770501044029,-421.0,0.00041031,7]
[404744624,1770501044038,-507.0,0.00041078,12]
[404744625,1770501044047,-2000.0,0.000411,7]
[404744626,1770501044057,-423.0,0.00041418,120]
[404744627,1770501044066,-152.24,0.00041442,120]
[404744628,1770501044075,-153.0,0.000415,120]
[404744629,1770501044084,-152.24,0.00041542,120]
[404744630,1770501044094,-421.0,0.0004163,2]
[404744631,1770501044103,-421.0,0.00041937,2]
[404744632,1770501044113,-210.59733973,0.00042,2]
[404744633,1770501044123,-423.0,0.00042035,120]
[404744634,1770501044133,-300.080549,0.00042079,109]
[404744635,1770501044143,-200.0,0.0004215,4]
[404744636,1770501044153,-421.0,0.00042155,2]
[404744637,1770501044163,-200.0,0.00042188,2]
[404744638,1770501044173,-200.0,0.00042188,2]
[404744639,1770501044182,-200.0,0.00042188,2]
[404744640,1770501044191,-200.0,0.00042188,2]
[404744641,1770501044201,-200.0,0.00042188,2]
[404744642,1770501044211,-200.0,0.00042188,2]
[404744643,1770501044222,-200.0,0.00042188,2]
[404744644,1770501044233,-200.0,0.00042188,2]
[404744645,1770501044243,-200.0,0.00042188,2]
[404744646,1770501044253,-200.0,0.00042188,2]
[404744647,1770501044263,-200.0,0.00042188,2]
[404744648,1770501044273,-200.0,0.00042188,2]
[404744649,1770501044282,-200.0,0.00042188,2]
[404744650,1770501044291,-200.0,0.00042188,2]
[404744651,1770501044301,-200.0,0.00042188,2]
[404744652,1770501044311,-200.0,0.00042188,2]
[404744653,1770501044320,-200.0,0.00042188,2]
[404744654,1770501044330,-200.0,0.00042188,2]
[404744655,1770501044339,-200.0,0.00042188,2]
[404744656,1770501044349,-200.0,0.00042188,2]
[404744657,1770501044359,-200.0,0.00042188,2]
[404744658,1770501044369,-200.0,0.00042188,2]
[404744659,1770501044379,-200.0,0.00042188,2]
[404744660,1770501044394,-200.0,0.00042188,2]
[404744661,1770501044403,-200.0,0.00042188,2]
[404744662,1770501044412,-200.0,0.00042188,2]
[404744663,1770501044422,-200.0,0.00042188,2]
[404744664,1770501044434,-200.0,0.00042188,2]
[404744665,1770501044443,-200.0,0.00042188,2]
[404744666,1770501044455,-200.0,0.00042188,2]
[404744667,1770501044466,-200.0,0.00042188,2]
[404744668,1770501044475,-200.0,0.00042188,2]
[404744669,1770501044485,-200.0,0.00042188,2]
[404744670,1770501044494,-200.0,0.00042188,2]
[404744671,1770501044504,-200.0,0.00042188,2]
[404744672,1770501044513,-200.0,0.00042188,2]
[404744673,1770501044523,-205.0,0.00042188,2]
[404744674,1770501044532,-153.0,0.000423,120]
[404744675,1770501044542,-423.0,0.00042392,7]
[404744676,1770501044551,-423.0,0.00042393,2]
[404744677,1770501044561,-200.0,0.00042425,4]
[404744678,1770501044570,-150.0,0.00042426,120]
[404744679,1770501044580,-554.47502784,0.00042451,2]
[404744680,1770501044590,-160.0,0.00042466,120]
[404744681,1770501044599,-20000.0,0.00042466,120]
[404744682,1770501044608,-423.0,0.0004249,2]
[404744683,1770501044618,-753.01,0.000425,30]
[404744684,1770501044627,-2000.0,0.000427,2]
[404744685,1770501044637,-200.0,0.00042731,5]
[404744686,1770501044646,-507.0,0.0004277,14]
[404744687,1770501044656,-52680.0,0.00042773,30]
[404744688,1770501044665,-160.0,0.00042773,30]
[404744689,1770501044674,-257.97447331,0.00042853,7]
[404744690,1770501044684,-200.0,0.00042958,5]
[404744691,1770501044694,-153.0,0.00043,120]
[404744692,1770501044703,-209.0,0.00043,30]
[404744693,1770501044712,-165.0,0.00043,90]
[404744694,1770501044722,-13082.53,0.00043,2]
[404744695,1770501044731,-500.0,0.0004318,30]
[404744696,1770501044741,-500.0,0.00043213,120]
[404744697,1770501044751,-500.0,0.00043213,120]
[404744698,1770501044760,-500.0,0.00043213,120]
[404744699,1770501044769,-500.0,0.00043213,2]
[404744700,1770501044779,-500.0,0.00043213,120]
[404744701,1770501044788,-500.0,0.00043213,120]
[404744702,1770501044797,-52680.0,0.00043214,30]
[404744703,1770501044807,-1941.30698508,0.00043353,10]
[404744704,1770501044816,-3000.0,0.000434,10]
[404744705,1770501044826,-616.0,0.00043518,2]
[404744706,1770501044835,-1335.0,0.00043518,2]
[404744707,1770501044844,-1411.0,0.00043518,2]
[404744708,1770501044853,-3483.0,0.00043518,2]
[404744709,1770501044862,-1272.0,0.00043518,2]
[404744710,1770501044871,-1206.0,0.00043518,2]
[404744711,1770501044881,-917.0,0.00043518,2]
[404744712,1770501044890,-150.0,0.00043518,2]
[404744713,1770501044900,-150.0,0.00043518,2]
[404744714,1770501044909,-3255.0,0.00043518,2]
[404744715,1770501044919,-150.0,0.00043518,2]
[404744716,1770501044928,-150.0,0.00043518,2]
[404744717,1770501044938,-6584.0,0.00043518,2]
[404744718,1770501044947,-2447.0,0.00043518,2]
[404744719,1770501044956,-150.0,0.00043518,2]
[404744720,1770501044966,-1000.0,0.00043562,30]
[404744721,1770501044975,-998.0,0.000436,30]
[404744722,1770501044985,-785.0,0.000436,30]
[404744723,1770501044994,-52680.0,0.00043655,30]
[404744724,1770501045004,-200.0,0.00043674,5]
[404744725,1770501045013,-123021.4432068,0.0004374,2]
[404744726,1770501045024,-415.6367,0.0004377,120]
[404744727,1770501045034,-153.0,0.000438,120]
[404744728,1770501045044,-500.0,0.00043835,120]
[404744729,1770501045054,-500.0,0.00043835,120]
[404744730,1770501045065,-500.0,0.00043835,120]
[404744731,1770501045075,-500.0,0.00043835,120]
[404744732,1770501045086,-497.29825063,0.00043835,120]
[404744733,1770501045096,-500.0,0.00043835,120]
[404744734,1770501045106,-500.0,0.00043835,120]
[404744735,1770501045116,-500.0,0.00043835,120]
[404744736,1770501045125,-500.0,0.00043835,120]
[404744738,1770501045135,-500.0,0.00043835,120]
[404744739,1770501045144,-509.95009223,0.00043835,120]
[404744740,1770501045154,-500.0,0.00043835,120]
[404744741,1770501045163,-500.0,0.00043835,120]
[404744742,1770501045173,-500.0,0.00043835,120]
[404744743,1770501045183,-524.68549888,0.00043835,120]
[404744745,1770501045192,-500.0,0.00043835,120]
[404744747,1770501045202,-500.0,0.00043835,120]
[404744749,1770501045211,-500.0,0.00043835,120]
[404744751,1770501045221,-512.72044027,0.00043835,120]
[404744753,1770501045231,-500.0,0.00043835,120]
[404744755,1770501045240,-509.51127569,0.00043835,120]
[404744756,1770501045251,-500.0,0.00043835,120]
[404744757,1770501045261,-500.0,0.00043835,120]
[404744758,1770501045271,-451.42962485,0.00043835,120]
[404744759,1770501045282,-551.6,0.00043835,120]
[404744760,1770501045291,-500.0,0.00043835,90]
[404744761,1770501045300,-500.0,0.00043835,120]
[404744762,1770501045310,-500.0,0.00043835,120]
[404744763,1770501045319,-573.11234202,0.00043835,120]
[404744764,1770501045329,-513.36313302,0.00043835,120]
[404744765,1770501045338,-500.0,0.00043835,120]
[404744766,1770501045347,-500.0,0.00043835,120]
[404744767,1770501045357,-500.0,0.00043835,120]
[404744768,1770501045367,-500.0,0.00043835,120]
[404744769,1770501045376,-500.0,0.00043835,120]
[404744770,1770501045389,-500.0,0.00043835,120]
[404744771,1770501045399,-500.0,0.00043835,120]
[404744772,1770501045409,-500.0,0.00043835,120]
[404744773,1770501045419,-500.0,0.00043835,120]
[404744774,1770501045429,-549.09334092,0.00043835,120]
[404744775,1770501045439,-500.0,0.00043835,120]
[404744776,1770501045448,-500.0,0.00043835,120]
[404744777,1770501045461,-500.0,0.00043835,120]
[404744778,1770501045470,-183.25,0.00043835,120]
[404744779,1770501045479,-501.63,0.00043835,120]
[404744780,1770501045488,-500.0,0.00043835,120]
[404744781,1770501045497,-500.0,0.00043835,120]
[404744782,1770501045507,-500.0,0.00043835,120]
[404744784,1770501045516,-500.0,0.00043835,120]
[404744786,1770501045526,-500.0,0.00043835,120]
[404744788,1770501045535,-533.2,0.00043835,120]
[404744790,1770501045544,-500.0,0.00043835,120]
[404744791,1770501045554,-520.94259196,0.00043835,120]
[404744792,1770501045563,-500.0,0.00043835,120]
[404744793,1770501045573,-500.0,0.00043835,120]
[404744794,1770501045583,-500.0,0.00043835,120]
[404744795,1770501045593,-500.0,0.00043835,120]
[404744796,1770501045604,-500.0,0.00043835,120]
[404744797,1770501045614,-500.0,0.00043835,120]
[404744798,1770501045624,-500.0,0.00043835,120]
[404744799,1770501045634,-500.0,0.00043835,120]
[404744800,1770501045644,-500.0,0.00043835,120]
[404744801,1770501045655,-500.0,0.00043835,120]
[404744802,1770501045664,-522.463333,0.00043835,120]
[404744803,1770501045675,-500.0,0.00043835,120]
[404744804,1770501045685,-500.0,0.00043835,120]
[404744805,1770501045696,-500.0,0.00043835,120]
[404744806,1770501045707,-500.0,0.00043835,120]
[404744807,1770501045718,-500.0,0.00043835,120]
[404744808,1770501045729,-500.0,0.00043835,120]
[404744809,1770501045740,-500.0,0.00043835,120]
[404744810,1770501045751,-500.0,0.00043835,120]
[404744811,1770501045760,-500.0,0.00043835,120]
[404744812,1770501045770,-518.22754755,0.00043835,120]
[404744813,1770501045781,-500.0,0.00043835,120]
[404744814,1770501045792,-500.0,0.00043835,120]
[404744815,1770501045804,-500.0,0.00043835,120]
[404744816,1770501045815,-518.1933326,0.00043835,120]
[404744817,1770501045824,-500.0,0.00043835,120]
[404744818,1770501045836,-500.0,0.00043835,120]
[404744819,1770501045846,-369.94942401,0.00043835,120]
[404744820,1770501045855,-500.0,0.00043835,120]
[404744821,1770501045866,-500.0,0.00043835,120]
[404744822,1770501045876,-500.0,0.00043835,120]
[404744823,1770501045886,-500.0,0.00043835,120]
[404744824,1770501045897,-500.0,0.00043835,120]
[404744825,1770501045908,-500.0,0.00043835,120]
[404744826,1770501045919,-500.0,0.00043835,120]
[404744827,1770501045930,-500.0,0.00043835,120]
[404744828,1770501045939,-500.0,0.00043835,120]
[404744829,1770501045949,-500.0,0.00043835,120]
[404744830,1770501045959,-500.0,0.00043835,120]
[404744831,1770501045967,-500.0,0.00043835,120]
[404744832,1770501045976,-500.0,0.00043835,120]
[404744833,1770501045985,-500.0,0.00043835,120]
[404744834,1770501045995,-532.00728494,0.00043835,120]
[404744835,1770501046004,-500.0,0.00043835,120]
[404744836,1770501046014,-500.0,0.00043835,120]
[404744837,1770501046024,-500.0,0.00043835,120]
[404744838,1770501046034,-500.0,0.00043835,120]
[404744839,1770501046044,-500.0,0.00043835,120]
[404744840,1770501046053,-500.0,0.00043835,120]
[404744841,1770501046060,-500.0,0.00043835,120]
[404744842,1770501046068,-500.0,0.00043835,120]
[404744843,1770501046077,-500.0,0.00043835,120]
[404744844,1770501046086,-500.0,0.00043835,120]
[404744845,1770501046095,-500.0,0.00043835,120]
[404744846,1770501046103,-500.0,0.00043835,120]
[404744847,1770501046150,-500.0,0.00043835,120]
[404744848,1770501046161,-500.0,0.00043835,120]
[404744849,1770501046172,-500.0,0.00043835,120]
[404744850,1770501046182,-500.0,0.00043835,120]
[404744851,1770501046194,-500.0,0.00043835,120]
[404744852,1770501046204,-500.0,0.00043835,120]
[404744853,1770501046214,-500.0,0.00043835,120]
[404744854,1770501046224,-500.0,0.00043835,120]
[404744855,1770501046236,-212.02417504,0.00043835,120]
[404744856,1770501046246,-500.0,0.00043835,120]
[404744857,1770501046256,-500.0,0.00043835,120]
[404744858,1770501046266,-500.0,0.00043835,120]
[404744859,1770501046275,-500.0,0.00043835,120]
[404744860,1770501046284,-500.0,0.00043835,120]
[404744861,1770501046294,-500.0,0.00043835,120]
[404744862,1770501046305,-486.45061493,0.00043835,120]
[404744863,1770501046314,-500.0,0.00043835,120]
[404744864,1770501046324,-500.0,0.00043835,120]
[404744865,1770501046333,-500.0,0.00043835,120]
[404744866,1770501046342,-518.16311361,0.00043835,120]
[404744867,1770501046351,-500.0,0.00043835,120]
[404744868,1770501046361,-178.06981994,0.00043835,120]
[404744869,1770501046370,-500.0,0.00043835,120]
[404744870,1770501046379,-175.65594044,0.00043835,120]
[404744871,1770501046394,-500.0,0.00043835,120]
[404744872,1770501046403,-500.0,0.00043835,120]
[404744873,1770501046412,-500.0,0.00043835,120]
[404744874,1770501046422,-500.0,0.00043835,120]
[404744875,1770501046433,-500.0,0.00043835,120]
[404744877,1770501046443,-344.70633679,0.00043835,120]
[404744878,1770501046452,-500.0,0.00043835,120]
[404744879,1770501046462,-20000.0,0.00043835,120]
[404744880,1770501046471,-500.0,0.00043835,120]
[404744881,1770501046480,-500.0,0.00043835,120]
[404744882,1770501046489,-500.0,0.00043835,120]
[404744884,1770501046498,-500.0,0.00043835,120]
[404744885,1770501046507,-500.0,0.00043835,120]
[404744886,1770501046516,-500.0,0.00043835,120]
[404744887,1770501046525,-169.60052713,0.00043835,120]
[404744888,1770501046534,-301.93555933,0.00043835,120]
[404744889,1770501046543,-500.0,0.00043835,120]
[404744890,1770501046555,-500.0,0.00043835,120]
[404744891,1770501046567,-500.0,0.00043835,120]
[404744892,1770501046576,-500.0,0.00043835,120]
[404744893,1770501046586,-500.0,0.00043835,120]
[404744894,1770501046596,-372.87805523,0.00043835,120]
[404744895,1770501046607,-500.0,0.00043835,120]
[404744896,1770501046617,-500.0,0.00043835,120]
[404744897,1770501046626,-500.0,0.00043835,120]
[404744898,1770501046636,-500.0,0.00043835,120]
[404744899,1770501046647,-500.0,0.00043835,120]
[404744900,1770501046656,-500.0,0.00043835,120]
[404744901,1770501046667,-360.35224269,0.00043835,120]
[404744902,1770501046678,-500.0,0.00043835,120]
[404744903,1770501046689,-500.0,0.00043835,120]
[404744904,1770501046699,-200.0,0.00043835,120]
[404744905,1770501046710,-410.21588838,0.00043835,120]
[404744906,1770501046720,-305.5561384,0.00043835,120]
[404744907,1770501046729,-500.0,0.00043835,120]
[404744908,1770501046740,-582.71404718,0.00043835,120]
[404744909,1770501046750,-500.0,0.00043835,120]
[404744910,1770501046760,-182.24,0.00043835,120]
[404744911,1770501046770,-424.38,0.00043835,2]
[404744912,1770501046781,-424.38,0.00043835,2]
[404744913,1770501046790,-424.38,0.00043835,2]
[404744914,1770501046802,-424.38,0.00043835,2]
[404744915,1770501046812,-424.38,0.00043835,2]
[404744916,1770501046822,-424.38,0.00043835,2]
[404744917,1770501046831,-424.38,0.00043835,2]
[404744918,1770501046842,-424.38,0.00043835,2]
[404744919,1770501046854,-424.38,0.00043835,2]
[404744920,1770501046864,-424.38,0.00043835,2]
[404744921,1770501046874,-424.38,0.00043835,2]
[404744922,1770501046883,-424.38,0.00043835,2]
[404744923,1770501046892,-424.38,0.00043835,2]
[404744924,1770501046901,-424.38,0.00043835,2]
[404744925,1770501046911,-424.38,0.00043835,2]
[404744926,1770501046920,-424.38,0.00043835,2]
[404744927,1770501046929,-424.38,0.00043835,2]
[404744928,1770501046940,-424.38,0.00043835,2]
[404744929,1770501046949,-424.38,0.00043835,2]
[404744930,1770501046959,-424.38,0.00043835,2]
[404744931,1770501046971,-424.38,0.00043835,2]
[404744932,1770501046981,-424.38,0.00043835,2]
[404744933,1770501046993,-424.38,0.00043835,2]
[404744934,1770501047003,-424.54768599,0.00043835,2]
[404744935,1770501047012,-151.91231216,0.00043835,120]
[404744936,1770501047022,-1999.0,0.00043835,120]
[404744937,1770501047031,-500.0,0.00043835,120]
[404744938,1770501047040,-500.0,0.00043835,120]
[404744939,1770501047051,-814.93,0.00043835,120]
[404744940,1770501047060,-814.93,0.00043835,120]
[404744941,1770501047071,-814.93,0.00043835,120]
[404744942,1770501047082,-814.93,0.00043835,120]
[404744943,1770501047091,-814.93,0.00043835,120]
[404744944,1770501047100,-814.93,0.00043835,120]
[404744945,1770501047111,-814.93,0.00043835,120]
[404744946,1770501047120,-814.93,0.00043835,120]
[404744947,1770501047130,-814.93,0.00043835,120]
[404744948,1770501047141,-578.47432123,0.00043835,120]
[404744949,1770501047150,-814.93,0.00043835,120]
[404744950,1770501047159,-814.93,0.00043835,120]
[404744951,1770501047168,-814.93,0.00043835,120]
[404744952,1770501047178,-814.93,0.00043835,120]
[404744953,1770501047187,-814.93,0.00043835,120]
[404744954,1770501047195,-814.93,0.00043835,120]
[404744955,1770501047205,-814.93,0.00043835,120]
[404744956,1770501047214,-814.93,0.00043835,120]
[404744957,1770501047224,-814.93,0.00043835,120]
[404744958,1770501047233,-500.0,0.00043835,120]
[404744959,1770501047242,-530.37198261,0.00043835,120]
[404744960,1770501047252,-500.0,0.00043835,120]
[404744961,1770501047261,-500.0,0.00043835,120]
[404744962,1770501047270,-371.31706927,0.00043835,120]
[404744963,1770501047279,-500.0,0.00043835,120]
[404744964,1770501047288,-500.0,0.00043835,120]
[404744965,1770501047298,-500.0,0.00043835,120]
[404744966,1770501047307,-500.0,0.00043835,120]
[404744967,1770501047316,-500.0,0.00043835,120]
[404744968,1770501047325,-500.0,0.00043835,120]
[404744969,1770501047335,-209.72917489,0.00043835,120]
[404744970,1770501047344,-467.75981147,0.00043835,120]
[404744971,1770501047353,-192.48707619,0.00043835,120]
[404744972,1770501047362,-500.0,0.00043835,120]
[404744973,1770501047371,-500.0,0.00043835,120]
[404744974,1770501047382,-586.55091096,0.00043835,120]
[404744975,1770501047394,-500.0,0.00043835,120]
[404744976,1770501047403,-500.0,0.00043835,120]
[404744977,1770501047413,-500.0,0.00043835,120]
[404744978,1770501047423,-500.0,0.00043835,120]
[404744979,1770501047433,-500.0,0.00043835,120]
[404744980,1770501047442,-500.0,0.00043835,120]
[404744981,1770501047452,-596.97253825,0.00043835,120]
[404744982,1770501047461,-193.48247632,0.00043835,14]
[404744983,1770501047471,-206.94879255,0.00043835,120]
[404744984,1770501047480,-500.0,0.00043835,120]
[404744985,1770501047489,-500.0,0.00043835,120]
[404744986,1770501047498,-319.29852367,0.00043835,120]
[404744987,1770501047507,-171.60401407,0.00043835,120]
[404744988,1770501047516,-500.0,0.00043835,120]
[404744989,1770501047525,-500.0,0.00043835,120]
[404744990,1770501047535,-209.03365391,0.00043835,120]